bitfinex-derivatives/quotes_SOLF0:USTF0_20241226
["timestamp","ask_amount","ask_price","bid_price","bid_amount"]
[1735229628514,7.81527797,189.87,189.78,7.81527797]
[1735229628908,2.6364,189.83,189.78,7.81527797]
[1735229629115,2.6364,189.83,189.8,2.6368]
[1735229629709,7.81527797,189.87,189.78,7.81527797]
[1735229629910,7.81527797,189.83,189.72,1.5565]
[1735229630111,7.81527797,189.81,189.73,7.81527797]
[1735229630305,7.81527797,189.79,189.69,8.98309572]
[1735229630711,3.1319,189.87,189.74,7.81527797]
[1735229630910,2.6364,189.84,189.76,2.6373]
[1735229631110,7.81527797,189.84,189.76,7.81527797]
[1735229631313,7.81527797,189.86,189.78,7.81527797]
[1735229631511,2.6362,189.84,189.79,2.6369]
[1735229631710,2.6362,189.84,189.78,7.81527797]
[1735229631911,3.1319,189.87,189.8,7.81527797]
[1735229632106,1.5916,189.87,189.84,2.6362]
[1735229632319,26.19970324,189.88,189.82,7.81527797]
[1735229632616,4.2267,189.88,189.82,7.81527797]
[1735229632810,1.5909,189.88,189.82,7.81527797]
[1735229633008,1.5909,189.88,189.69,1.662]
[1735229633009,2.636,189.86,189.8,7.81527797]
[1735229633412,9.40617797,189.88,189.69,1.662]
[1735229633413,7.81527797,189.84,189.69,30.94638288]
[1735229633614,2.6367,189.82,189.76,7.81527797]
[1735229634116,2.6368,189.81,189.72,12.22786577]
[1735229634613,28.11786577,189.87,189.72,12.22786577]
[1735229634816,12.22786577,189.84,189.69,13.88986577]
[1735229635016,3.3087,189.83,189.69,13.88986577]
[1735229635219,2.6375,189.75,189.69,1.662]
[1735229636021,1.6823,189.8,189.69,13.88986577]
[1735229636529,3.3087,189.83,189.77,2.6371]
[1735229636530,2.6365,189.82,189.77,2.6371]
[1735229637122,2.6365,189.82,189.78,2.6371]
[1735229639126,3.3087,189.83,189.72,12.22786577]
[1735229639329,2.6364,189.83,189.79,2.6368]
[1735229639531,1.6823,189.88,189.75,12.22786577]
[1735229640230,2.6363,189.84,189.78,2.637]
[1735229640431,1.6823,189.88,189.75,12.22786577]
[1735229640837,1.6823,189.88,189.83,2.6363]
[1735229641026,1.5428,189.91,189.78,12.22786577]
[1735229641223,1.5428,189.91,189.76,1.5316]
[1735229641224,1.5428,189.91,189.81,12.22786577]
[1735229641429,2.6355,189.9,189.85,2.636]
[1735229641732,1.5428,189.91,189.85,2.636]
[1735229641933,2.6357,189.88,189.84,2.6362]
[1735229642229,2.6357,189.88,189.79,1.6502]
[1735229642832,1.5428,189.91,189.79,1.6502]
[1735229643023,1.5428,189.91,189.81,12.22786577]
[1735229643226,1.6737,189.92,189.87,2.6358]
[1735229644124,2.6354,189.91,189.81,12.22786577]
[1735229644931,2.6356,189.89,189.85,2.636]
[1735229645232,2.6356,189.89,189.81,12.22786577]
[1735229645534,2.6356,189.89,189.84,2.6361]
[1735229646231,2.6352,189.92,189.87,2.6357]
[1735229646425,12.22786577,189.96,189.81,12.22786577]
[1735229646630,12.22786577,189.96,189.79,1.6502]
[1735229646631,1.5607,189.98,189.84,12.22786577]
[1735229647030,12.22786577,189.96,189.81,12.22786577]
[1735229647434,2.6358,189.88,189.81,12.22786577]
[1735229647633,12.22786577,189.9,189.77,1.6668]
[1735229647832,4.7467,189.89,189.76,1.5316]
[1735229648032,12.22786577,189.87,189.74,8.86359572]
[1735229648532,12.22786577,189.84,189.74,1.5425]
[1735229648737,12.22786577,189.84,189.71,1.5601]
[1735229649334,2.6372,189.77,189.71,4.198]
[1735229649536,12.22786577,189.81,189.71,4.198]
[1735229649729,12.22786577,189.77,189.68,7.32109572]
[1735229649929,12.22786577,189.77,189.66,58.56876576]
[1735229650130,12.22786577,189.77,189.63,15.42526577]
[1735229650435,12.22786577,189.74,189.63,3.1974]
[1735229651537,2.6383,189.7,189.64,2.639]
[1735229651930,2.6382,189.71,189.63,2.6392]
[1735229652136,2.6382,189.71,189.6,12.22786577]
[1735229652736,2.6382,189.71,189.65,2.6389]
[1735229653138,2.6379,189.73,189.67,2.6386]
[1735229654440,3.1926,189.76,189.66,12.22786577]
[1735229654644,1.603,189.82,189.66,12.22786577]
[1735229654946,1.603,189.82,189.69,12.22786577]
[1735229655538,1.603,189.82,189.72,2.6379]
[1735229655539,2.6373,189.77,189.72,2.6379]
[1735229655937,1.603,189.82,189.69,12.22786577]
[1735229656638,2.6372,189.78,189.73,2.6378]
[1735229656845,3.2454,189.84,189.69,12.22786577]
[1735229657043,3.2454,189.84,189.72,12.22786577]
[1735229657743,2.6365,189.82,189.75,2.6374]
[1735229657944,2.6365,189.82,189.72,12.22786577]
[1735229659944,2.6365,189.82,189.76,2.6372]
[1735229660145,2.6365,189.82,189.72,12.22786577]
[1735229660346,2.6364,189.83,189.77,2.6371]
[1735229661840,2.6367,189.81,189.72,12.22786577]
[1735229662949,12.22786577,189.86,189.72,12.22786577]
[1735229663247,12.22786577,189.83,189.73,2.6377]
[1735229663449,2.637,189.79,189.69,12.22786577]
[1735229663749,1.5712,189.82,189.69,12.22786577]
[1735229663950,1.5712,189.82,189.72,2.6379]
[1735229664248,1.5712,189.82,189.63,7.32109572]
[1735229664249,28.06786577,189.8,189.63,7.32109572]
[1735229664450,12.22786577,189.77,189.63,7.32109572]
[1735229664649,12.22786577,189.77,189.61,13.87756577]
[1735229664945,2.6378,189.74,189.68,2.6385]
[1735229665649,2.6378,189.74,189.7,2.6382]
[1735229665845,3.1839,189.79,189.67,12.22786577]
[1735229666042,1.5486,189.79,189.67,12.22786577]
[1735229666650,2.6372,189.78,189.67,12.22786577]
[1735229666851,1.5486,189.79,189.68,1.6289]
[1735229667953,2.6374,189.76,189.68,1.6289]
[1735229668154,1.5486,189.79,189.68,1.6289]
[1735229668549,2.6375,189.75,189.68,1.6289]
[1735229669148,2.6375,189.75,189.7,2.6381]
[1735229669356,2.6375,189.75,189.68,1.6289]
[1735229670547,2.6375,189.75,189.71,2.638]
[1735229670752,2.6374,189.76,189.71,2.638]
[1735229674459,2.6371,189.79,189.74,2.6376]
[1735229674756,1.5712,189.82,189.7,12.22786577]
[1735229674953,1.5712,189.82,189.71,1.569]
[1735229676156,2.637,189.79,189.75,2.6375]
[1735229677164,1.6237,189.85,189.71,1.569]
[1735229677662,2.6368,189.81,189.76,2.6373]
[1735229677863,1.6237,189.85,189.76,2.6373]
[1735229678258,1.6237,189.85,189.71,1.569]
[1735229678661,2.6364,189.83,189.73,12.22786577]
[1735229678860,1.6237,189.85,189.73,12.22786577]
[1735229679062,1.6237,189.85,189.78,2.637]
[1735229679255,2.6365,189.83,189.73,12.22786577]
[1735229679770,2.6372,189.78,189.71,1.569]
[1735229680066,12.22786577,189.83,189.71,1.569]
[1735229680465,2.6372,189.78,189.71,1.569]
[1735229680661,2.6372,189.78,189.73,2.6377]
[1735229680866,1.6237,189.85,189.73,2.6377]
[1735229680867,12.22786577,189.8,189.73,2.6377]
[1735229681873,2.6371,189.78,189.73,2.6377]
[1735229682461,2.6371,189.78,189.74,2.6376]
[1735229683669,2.6368,189.81,189.74,2.6376]
[1735229683868,12.22786577,189.83,189.73,2.6377]
[1735229684368,2.6376,189.75,189.71,2.638]
[1735229684764,2.6376,189.75,189.69,1.5477]
[1735229685969,2.6376,189.75,189.71,2.6379]
[1735229686971,12.22786577,189.8,189.69,1.5477]
[1735229687173,1.6404,189.82,189.69,1.5477]
[1735229687467,2.6366,189.82,189.71,12.22786577]
[1735229687664,2.6366,189.82,189.72,1.6112]
[1735229688466,2.6366,189.82,189.77,2.6371]
[1735229689064,2.6363,189.84,189.72,1.6112]
[1735229689269,2.6363,189.84,189.74,12.22786577]
[1735229690371,2.6363,189.84,189.77,2.6372]
[1735229690576,2.6363,189.84,189.74,12.22786577]
[1735229691166,2.6363,189.84,189.8,2.6368]
[1735229696181,2.6367,189.82,189.78,2.637]
[1735229696384,13.76096577,189.86,189.74,12.22786577]
[1735229697080,1.5242,189.88,189.74,12.22786577]
[1735229698282,2.6366,189.82,189.78,2.6371]
[1735229698476,13.75206577,189.88,189.74,12.22786577]
[1735229699081,2.6363,189.84,189.8,2.6368]
[1735229699688,2.6366,189.82,189.76,2.6372]
[1735229699884,12.22786577,189.85,189.72,1.6112]
[1735229700381,2.6368,189.8,189.72,1.6112]
[1735229700582,12.22786577,189.85,189.72,1.6112]
[1735229700785,2.6366,189.82,189.78,2.6371]
[1735229701084,12.22786577,189.85,189.72,1.6112]
[1735229701287,2.6361,189.86,189.82,2.6365]
[1735229701488,13.75206577,189.88,189.82,2.6365]
[1735229701889,1.6636,189.9,189.77,12.22786577]
[1735229702084,1.6636,189.9,189.79,11.99810199]
[1735229702281,7.67878321,189.88,189.82,7.67878321]
[1735229702480,7.67878321,189.88,189.84,2.6361]
[1735229703084,10.31448321,189.88,189.84,2.6361]
[1735229703289,7.67878321,189.86,189.78,3.245]
[1735229703490,7.67878321,189.84,189.78,9.31218321]
[1735229703789,7.67878321,189.86,189.8,7.67878321]
[1735229704191,2.6361,189.86,189.82,2.6365]
[1735229704888,2.6361,189.85,189.81,2.6366]
[1735229705192,12.00046441,189.86,189.74,12.00046441]
[1735229705391,2.6372,189.78,189.74,2.6375]
[1735229705586,12.00046441,189.8,189.68,72.20403017]
[1735229705991,12.00046441,189.8,189.68,1.6348]
[1735229706190,2.6374,189.76,189.68,1.6348]
[1735229706792,2.6373,189.77,189.72,2.6379]
[1735229708183,12.00046441,189.8,189.66,1.632]
[1735229708389,12.00046441,189.77,189.66,1.632]
[1735229708889,2.6378,189.73,189.67,2.6385]
[1735229709191,12.00046441,189.77,189.67,2.6385]
[1735229710294,1.6532,189.76,189.67,2.6385]
[1735229710494,2.6379,189.72,189.67,2.6385]
[1735229710997,2.6378,189.73,189.68,2.6384]
[1735229711594,2.6374,189.77,189.71,2.6379]
[1735229711890,2.6374,189.77,189.68,12.00046441]
[1735229712091,12.00046441,189.8,189.68,12.00046441]
[1735229712396,12.00046441,189.77,189.66,1.632]
[1735229713194,12.00046441,189.77,189.63,107.02860828]
[1735229713399,12.00046441,189.74,189.62,12.00046441]
[1735229713692,2.6384,189.69,189.64,2.639]
[1735229713895,12.00046441,189.74,189.62,12.00046441]
[1735229714092,2.6383,189.7,189.62,12.00046441]
[1735229714394,12.00046441,189.74,189.62,12.00046441]
[1735229714596,4.9653,189.82,189.65,12.00046441]
[1735229714790,12.00046441,189.8,189.68,12.00046441]
[1735229715198,2.6373,189.77,189.72,2.6378]
[1735229715391,12.00046441,189.8,189.68,12.00046441]
[1735229715897,2.6375,189.76,189.71,2.638]
[1735229716096,12.00046441,189.8,189.68,12.00046441]
[1735229716597,2.6371,189.78,189.73,2.6377]
[1735229716790,12.00046441,189.8,189.68,12.00046441]
[1735229716995,12.00046441,189.77,189.69,2.6382]
[1735229717191,12.00046441,189.77,189.65,12.00046441]
[1735229717388,12.00046441,189.77,189.61,115.9053362]
[1735229717389,12.00046441,189.74,189.62,12.00046441]
[1735229717588,12.00046441,189.74,189.66,2.6387]
[1735229717793,12.00046441,189.74,189.62,12.00046441]
[1735229717998,4.8754,189.73,189.62,12.00046441]
[1735229718299,2.6384,189.69,189.62,12.00046441]
[1735229718593,2.6386,189.68,189.63,2.6391]
[1735229724393,12.00046441,189.71,189.63,2.6391]
[1735229725202,12.00046441,189.71,189.59,12.00046441]
[1735229725704,12.00046441,189.71,189.64,2.6389]
[1735229726203,12.00046441,189.71,189.59,12.00046441]
[1735229726404,12.00046441,189.71,189.56,12.00046441]
[1735229726904,12.00046441,189.68,189.6,2.6395]
[1735229727105,4.8754,189.73,189.59,12.00046441]
[1735229727304,2.6382,189.7,189.66,2.6387]
[1735229727601,4.8754,189.73,189.62,12.00046441]
[1735229727907,2.6381,189.71,189.65,2.6388]
[1735229728095,2.6381,189.71,189.62,12.00046441]
[1735229728600,2.6381,189.71,189.67,2.6386]
[1735229728900,4.8754,189.73,189.62,12.00046441]
[1735229729801,2.6382,189.71,189.67,2.6386]
[1735229730004,4.8754,189.73,189.65,12.00046441]
[1735229730208,12.00046441,189.81,189.7,2.6381]
[1735229730499,12.00046441,189.81,189.65,12.00046441]
[1735229730500,4.8785,189.8,189.68,12.00046441]
[1735229730899,2.6374,189.76,189.72,2.6378]
[1735229731099,4.8785,189.8,189.68,12.00046441]
[1735229731511,2.6372,189.77,189.72,2.6378]
[1735229734703,4.8785,189.8,189.68,12.00046441]
[1735229734902,2.6371,189.79,189.74,2.6376]
[1735229735501,2.6371,189.78,189.74,2.6376]
[1735229735899,4.8785,189.8,189.75,2.6375]
[1735229736104,2.6369,189.79,189.75,2.6375]
[1735229739103,12.00046441,189.84,189.71,12.00046441]
[1735229739307,16.79616441,189.87,189.74,12.00046441]
[1735229739800,2.6361,189.85,189.81,2.6366]
[1735229741210,2.6364,189.83,189.79,2.6369]
[1735229741409,7.68070156,189.84,189.77,7.68070156]
[1735229741999,7.68070156,189.86,189.79,7.68070156]
[1735229742298,7.68070156,189.86,189.75,3.2711]
[1735229742299,2.6361,189.85,189.8,2.6367]
[1735229742803,94.76963292,189.93,189.8,12.00045048]
[1735229742999,21.97300324,189.93,189.8,12.00045048]
[1735229743204,58.5946753,189.94,189.8,12.00045048]
[1735229743410,13.54295048,189.95,189.83,12.00045048]
[1735229743411,1.5425,189.95,189.83,12.00045048]
[1735229743607,1.5425,189.95,189.84,3.1063]
[1735229743800,12.00045048,189.93,189.84,3.1063]
[1735229744005,2.6353,189.91,189.86,2.636]
[1735229744202,1.5425,189.95,189.84,3.1063]
[1735229744401,21.97300324,189.98,189.86,12.00045048]
[1735229744607,2.6346,189.96,189.86,12.00045048]
[1735229744809,12.00045048,189.99,189.86,12.00045048]
[1735229745004,2.6353,189.92,189.86,2.6358]
[1735229745306,12.00045048,189.96,189.84,3.1063]
[1735229745702,2.6352,189.92,189.86,2.6358]
[1735229746012,12.00045048,189.96,189.84,3.1063]
[1735229746208,12.00045048,189.99,189.86,12.00045048]
[1735229746410,2.6346,189.97,189.92,2.6351]
[1735229746608,12.00045048,189.99,189.86,12.00045048]
[1735229746805,2.6347,189.96,189.9,2.6354]
[1735229747003,12.00045048,189.99,189.86,12.00045048]
[1735229747503,2.6349,189.94,189.89,2.6355]
[1735229747808,12.00045048,189.99,189.86,12.00045048]
[1735229748605,4.8681,190.03,189.89,12.00045048]
[1735229748812,2.6342,189.99,189.95,2.6347]
[1735229749207,2.634,190.0,189.96,2.6346]
[1735229749412,2.634,190.0,189.89,12.00045048]
[1735229750515,2.6339,190.01,189.92,12.00045048]
[1735229750816,12.00045048,190.05,189.92,12.00045048]
[1735229751015,12.00045048,190.08,189.95,12.00045048]
[1735229751316,12.00045048,190.08,189.94,1.6714]
[1735229751515,12.00045048,190.08,189.94,13.67185048]
[1735229751906,21.97300324,190.18,190.03,12.00045048]
[1735229752110,2.6325,190.11,190.06,14.63355048]
[1735229752515,12.00045048,190.15,190.04,3.2799]
[1735229752910,12.00045048,190.12,189.94,1.6714]
[1735229753117,12.00045048,190.09,189.97,12.00045048]
[1735229753310,12.00045048,190.09,189.95,3.2799]
[1735229753311,2.6341,190.0,189.95,5.9145]
[1735229753517,3.2539,190.1,189.95,3.2799]
[1735229753815,2.6329,190.08,190.03,12.00045048]
[1735229754717,2.6329,190.08,190.02,2.6337]
[1735229755515,2.6329,190.08,190.03,2.6336]
[1735229755815,1.617,190.11,190.0,12.00045048]
[1735229756316,3.1935,190.16,190.03,12.00045048]
[1735229756714,2.6327,190.1,190.03,12.00045048]
[1735229756922,1.6129,190.15,190.0,12.00045048]
[1735229757219,2.6324,190.13,190.03,12.00045048]
[1735229757525,12.00045048,190.19,190.06,12.00045048]
[1735229759922,12.00045048,190.19,190.07,1.6084]
[1735229760519,12.00045048,190.19,190.1,2.6325]
[1735229761522,12.00045048,190.19,190.08,2.6329]
[1735229761915,12.00045048,190.16,190.07,2.633]
[1735229762120,12.00045048,190.16,190.03,12.00045048]
[1735229763026,12.00045048,190.13,190.0,1.6084]
[1735229763323,12.00045048,190.1,189.96,13.65375048]
[1735229763924,3.1849,190.12,190.05,2.6333]
[1735229764123,3.1849,190.12,189.96,1.6533]
[1735229764124,1.6574,190.15,190.02,12.00045048]
[1735229764313,1.6574,190.15,190.05,12.00045048]
[1735229764625,1.6574,190.15,190.07,2.6331]
[1735229764823,1.6574,190.15,190.05,12.00045048]
[1735229765014,1.6574,190.15,190.02,12.00045048]
[1735229765221,15.13795048,190.14,190.04,2.6334]
[1735229765825,12.00045048,190.11,190.0,1.651]
[1735229766024,12.00045048,190.11,189.99,12.00045048]
[1735229766225,12.00045048,190.08,189.96,13.65375048]
[1735229766519,1.6208,190.07,189.96,12.00045048]
[1735229767322,12.00045048,190.02,189.91,1.5613]
[1735229768221,2.6343,189.99,189.94,2.6349]
[1735229768429,12.00045048,190.02,189.91,1.5613]
[1735229769318,2.6344,189.98,189.94,2.6349]
[1735229769518,12.00045048,190.02,189.91,1.5613]
[1735229769727,2.6335,190.04,189.93,12.00045048]
[1735229769927,1.6208,190.07,189.96,12.00045048]
[1735229770123,1.6208,190.07,189.97,12.00045048]
[1735229770328,2.6333,190.06,190.01,2.6338]
[1735229770621,1.6208,190.07,189.97,12.00045048]
[1735229770823,2.6333,190.05,190.0,2.634]
[1735229771023,2.6333,190.05,189.97,12.00045048]
[1735229771928,1.6208,190.07,189.97,12.00045048]
[1735229772132,12.00045048,190.11,189.97,12.00045048]
[1735229772324,3.1375,190.14,190.0,12.00045048]
[1735229772325,1.5564,190.13,190.0,12.00045048]
[1735229772637,12.00045048,190.11,190.0,12.00045048]
[1735229773026,2.633,190.08,190.03,2.6335]
[1735229773930,12.00045048,190.11,190.0,2.6339]
[1735229773931,2.6332,190.06,190.0,2.6339]
[1735229774130,12.00045048,190.08,189.97,12.00045048]
[1735229774333,12.00045048,190.08,189.94,12.00045048]
[1735229774535,2.6335,190.04,189.94,12.00045048]
[1735229774929,12.00045048,190.08,189.94,12.00045048]
[1735229775231,12.00045048,190.05,189.92,1.6886]
[1735229775435,27.84045048,190.08,189.91,13.56175048]
[1735229775436,12.00045048,190.02,189.91,13.56175048]
[1735229775636,11.9848668,190.02,189.91,1.5613]
[1735229775836,2.6342,189.99,189.94,2.6348]
[1735229776231,7.5906,190.04,189.95,2.6346]
[1735229776431,11.9848668,190.09,189.98,11.9848668]
[1735229776934,14.6177668,190.09,190.04,2.6335]
[1735229777840,2.6329,190.09,190.05,2.6333]
[1735229778737,11.9848668,190.12,190.01,11.9848668]
[1735229779237,1.688,190.13,190.04,11.9848668]
[1735229779638,4.3202,190.13,190.04,11.9848668]
[1735229780239,4.3202,190.13,190.08,2.6329]
[1735229780839,2.6325,190.12,190.06,2.6331]
[1735229781044,1.688,190.13,190.06,2.6331]
[1735229781236,1.688,190.13,190.01,11.9848668]
[1735229781433,4.3203,190.13,190.01,11.9848668]
[1735229781940,11.9848668,190.18,190.06,11.9848668]
[1735229782140,2.6316,190.18,190.1,2.6326]
[1735229782335,11.9848668,190.18,190.1,2.6326]
[1735229782545,11.9848668,190.18,190.06,11.9848668]
[1735229782737,2.6319,190.16,190.11,2.6324]
[1735229783339,11.9848668,190.18,190.06,11.9848668]
[1735229783642,2.6322,190.14,190.09,2.6326]
[1735229784244,2.6322,190.14,190.06,11.9848668]
[1735229784245,2.6319,190.16,190.12,2.6324]
[1735229784540,4.9975,190.22,190.12,11.9848668]
[1735229785437,87.89201296,190.3,190.12,11.9848668]
[1735229785636,13.5144668,190.26,190.12,11.9848668]
[1735229786039,2.6309,190.23,190.12,11.9848668]
[1735229786242,11.9848668,190.23,190.09,4.7521]
[1735229786445,11.9848668,190.23,190.11,11.9848668]
[1735229786940,13.5144668,190.26,190.09,3.0983]
[1735229787145,11.9848668,190.2,190.09,3.0983]
[1735229787446,1.5296,190.26,190.09,3.0983]
[1735229787643,11.9848668,190.21,190.09,3.0983]
[1735229787947,2.6317,190.18,190.12,2.6322]
[1735229788143,11.9848668,190.21,190.09,3.0983]
[1735229788339,2.6318,190.16,190.11,2.6324]
[1735229788544,11.9848668,190.21,190.08,11.9848668]
[1735229788945,2.6319,190.16,190.1,2.6326]
[1735229789542,2.6319,190.16,190.11,2.6325]
[1735229790244,13.29301039,190.21,190.09,13.29301039]
[1735229790447,2.6317,190.17,190.12,2.6323]
[1735229790845,2.631,190.23,190.16,2.6318]
[1735229791048,2.631,190.23,190.13,13.29301039]
[1735229791049,14.82261039,190.26,190.13,13.29301039]
[1735229791240,1.5296,190.26,190.13,13.29301039]
[1735229791441,4.1601,190.26,190.2,2.6312]
[1735229791847,4.1601,190.26,190.16,13.29301039]
[1735229792142,2.6305,190.26,190.22,2.631]
[1735229792348,2.6305,190.26,190.15,21.24437739]
[1735229792550,21.24437739,190.29,190.12,21.24437739]
[1735229792749,21.24437739,190.26,190.11,1.5688]
[1735229793150,1.6164,190.25,190.17,2.6315]
[1735229793541,2.6311,190.22,190.15,2.6318]
[1735229793742,2.6311,190.22,190.12,21.24437739]
[1735229793948,1.6164,190.25,190.11,1.5688]
[1735229794248,3.2504,190.24,190.09,21.24437739]
[1735229794954,3.2504,190.24,190.15,2.6319]
[1735229794955,2.6313,190.2,190.15,2.6319]
[1735229795349,3.2504,190.24,190.09,21.24437739]
[1735229795551,3.2504,190.24,190.18,2.6315]
[1735229795743,3.2504,190.24,190.12,21.24437739]
[1735229796152,3.2504,190.24,190.16,2.6317]
[1735229796553,1.6164,190.25,190.12,21.24437739]
[1735229796953,2.6307,190.24,190.12,21.24437739]
[1735229797455,2.6307,190.24,190.19,2.6313]
[1735229799151,1.6136,190.28,190.13,3.304]
[1735229799353,2.631,190.22,190.17,2.6316]
[1735229799553,21.24437739,190.26,190.17,2.6316]
[1735229800053,2.6306,190.25,190.2,2.6312]
[1735229800352,1.6136,190.28,190.13,3.304]
[1735229800552,2.6307,190.25,190.2,2.6312]
[1735229800753,1.6136,190.28,190.13,3.304]
[1735229802355,1.6136,190.28,190.15,21.24437739]
[1735229802655,1.6136,190.28,190.22,2.631]
[1735229803451,4.2438,190.28,190.22,2.631]
[1735229804753,4.2438,190.28,190.23,2.6308]
[1735229805946,21.24437739,190.31,190.13,3.304]
[1735229806145,21.24437739,190.38,190.2,21.24437739]
[1735229806355,26.16197739,190.38,190.21,3.348]
[1735229806851,2.6293,190.34,190.29,2.6299]
[1735229807060,2.6293,190.34,190.21,3.348]
[1735229807957,21.24437739,190.35,190.21,3.348]
[1735229808952,21.24437739,190.35,190.25,2.6305]
[1735229809156,21.24437739,190.32,190.25,2.6305]
[1735229809956,21.24437739,190.32,190.17,21.24437739]
[1735229810255,21.24437739,190.32,190.15,1.633]
[1735229811250,21.24437739,190.29,190.15,1.633]
[1735229811453,4.7199,190.28,190.15,1.633]
[1735229811755,2.6309,190.23,190.17,2.6316]
[1735229811956,21.24437739,190.26,190.13,3.1439]
[1735229812756,2.6311,190.22,190.13,3.1439]
[1735229813053,21.24437739,190.35,190.19,21.24437739]
[1735229813262,2.63,190.3,190.25,2.6304]
[1735229813461,21.97300324,190.33,190.19,21.24437739]
[1735229813762,24.60250324,190.33,190.19,21.24437739]
[1735229813956,24.60250324,190.33,190.2,3.2751]
[1735229814157,21.97300324,190.33,190.2,3.2751]
[1735229814352,61.6937753,190.34,190.27,2.6303]
[1735229814353,2.6297,190.32,190.27,2.6303]
[1735229815556,3.0991,190.34,190.2,3.2751]
[1735229815756,21.24437739,190.32,190.16,21.24437739]
[1735229816055,21.24437739,190.29,190.19,2.6314]
[1735229816263,13.28277544,190.27,190.19,2.6314]
[1735229816462,4.9332,190.26,190.14,13.28277544]
[1735229816663,2.6309,190.23,190.14,13.28277544]
[1735229816961,4.9332,190.26,190.14,13.28277544]
[1735229817157,4.9332,190.26,190.17,13.28277544]
[1735229817366,4.9332,190.26,190.18,13.28277544]
[1735229817558,13.28277544,190.31,190.18,13.28277544]
[1735229817755,18.17567544,190.34,190.13,1.6629]
[1735229817955,18.17567544,190.34,190.2,13.28277544]
[1735229818458,18.17567544,190.34,190.23,13.28277544]
[1735229819357,18.17567544,190.34,190.13,14.24839572]
[1735229819560,4.8929,190.34,190.19,13.28277544]
[1735229819757,2.6298,190.31,190.26,2.6303]
[1735229820258,2.6298,190.31,190.22,13.28277544]
[1735229820453,2.6298,190.31,190.24,2.6306]
[1735229820761,2.6296,190.33,190.22,13.28277544]
[1735229820962,4.8929,190.34,190.25,2.6304]
[1735229821157,13.28277544,190.32,190.19,13.28277544]
[1735229821856,2.6301,190.29,190.19,13.28277544]
[1735229822666,2.6302,190.28,190.19,13.28277544]
[1735229823555,4.8929,190.34,190.22,13.28277544]
[1735229823756,2.63,190.3,190.22,13.28277544]
[1735229824057,4.8929,190.34,190.22,13.28277544]
[1735229824252,2.63,190.29,190.25,2.6305]
[1735229824457,4.8929,190.34,190.22,13.28277544]
[1735229824957,2.63,190.29,190.22,13.28277544]
[1735229825459,2.6302,190.28,190.24,2.6307]
[1735229825959,2.63,190.29,190.25,2.6306]
[1735229827365,4.8929,190.34,190.19,13.28277544]
[1735229827660,13.28277544,190.32,190.19,13.28277544]
[1735229829065,13.28277544,190.32,190.13,1.6629]
[1735229829267,2.6301,190.29,190.2,13.28277544]
[1735229829867,2.6301,190.29,190.22,2.6309]
[1735229830070,13.28277544,190.32,190.2,13.28277544]
[1735229830263,13.28277544,190.29,190.13,1.6629]
[1735229830564,13.28277544,190.26,190.13,1.6629]
[1735229830764,13.28277544,190.26,190.13,14.94567544]
[1735229831069,4.7472,190.25,190.13,14.94567544]
[1735229831265,13.28277544,190.23,190.12,29.28438288]
[1735229831866,13.28277544,190.2,190.12,29.28438288]
[1735229832067,13.28277544,190.2,190.06,13.28277544]
[1735229832261,13.28277544,190.2,190.09,13.28277544]
[1735229832461,2.6318,190.17,190.12,2.6323]
[1735229833158,13.28277544,190.2,190.09,13.28277544]
[1735229833364,13.28277544,190.2,190.06,13.28277544]
[1735229833968,2.6318,190.16,190.11,2.6324]
[1735229834269,13.28277544,190.2,190.06,13.28277544]
[1735229834665,2.632,190.15,190.06,13.28277544]
[1735229834871,4.7472,190.25,190.09,13.28277544]
[1735229835166,2.6311,190.22,190.09,13.28277544]
[1735229835365,2.6311,190.22,190.12,13.28277544]
[1735229835568,4.7472,190.25,190.12,13.28277544]
[1735229835765,2.6303,190.27,190.22,2.6309]
[1735229835970,35.25577868,190.31,190.18,13.28277544]
[1735229836268,2.6307,190.25,190.2,2.6311]
[1735229836467,2.6307,190.25,190.13,5.0285]
[1735229836468,13.28277544,190.28,190.15,13.28277544]
[1735229837070,13.28277544,190.28,190.06,21.96328716]
[1735229837369,13.28277544,190.25,190.13,13.28277544]